fUSD/lending_fUSD_20250117
["ID","MTS","AMOUNT","RATE_DAILY","PERIOD"]
[349303692,1737109832085,-366.86,0.00028542,2]
[349303693,1737109832095,-432.38116118,0.00028723,2]
[349303694,1737109832105,-1682.721,0.00028894,21]
[349303696,1737109832114,-54.35723624,0.00028894,2]
[349303698,1737109832126,-358.03965,0.00028894,2]
[349303699,1737109832141,-87.60311376,0.00028894,2]
[349303700,1737109832151,-500.0,0.00028894,2]
[349303701,1737109832161,-500.0,0.00028894,2]
[349303702,1737109832170,-500.0,0.00028894,2]
[349303703,1737109832180,-500.0,0.00028894,2]
[349303704,1737109832189,-169.4365754,0.00028894,2]
[349303705,1737109832209,-330.5634246,0.00028894,2]
[349303706,1737109832219,-534.4,0.00028894,2]
[349303707,1737109832228,-500.0,0.00028894,2]
[349303708,1737109832238,-500.0,0.00028894,2]
[349303709,1737109832247,-500.0,0.00028894,2]
[349303710,1737109832256,-500.0,0.00028894,2]
[349303711,1737109832266,-500.0,0.00028894,2]
[349303713,1737109832275,-500.0,0.00028894,2]
[349303715,1737109832285,-120.33459106,0.00028894,2]
[349303718,1737109832296,-379.66540894,0.00028894,2]
[349303720,1737109832305,-98.65047492,0.00028894,2]
[349304223,1737109837516,-150.0,0.00026375,2]
[349304225,1737109837525,-401.34952508,0.00028894,2]
[349304227,1737109837534,-11.13188439,0.00028894,2]
[349304229,1737109837546,-488.86811561,0.00028894,2]
[349304231,1737109837556,-500.0,0.00028894,2]
[349304233,1737109837565,-500.0,0.00028894,2]
[349304235,1737109837574,-360.22788439,0.00028894,2]
[349304238,1737109837586,-139.77211561,0.00028894,2]
[349304239,1737109837596,-500.0,0.00028894,2]
[349304241,1737109837605,-250.0,0.00029174,2]
[349304244,1737109837615,-1365.10940892,0.00029375,2]
[349304246,1737109837631,-651.89059108,0.00029375,2]
[349304248,1737109837641,-1268.0,0.00029375,2]
[349304250,1737109837650,-3899.0,0.00029375,2]
[349304252,1737109837660,-150.0,0.00029375,2]
[349304254,1737109837669,-1000.0,0.00029464,2]
[349304256,1737109837680,-6834.159,0.00029748,120]
[349304258,1737109837690,-350.8743149,0.00029808,2]
[349304260,1737109837699,-500.0,0.00029808,2]
[349304262,1737109837713,-500.0,0.00029808,2]
[349304264,1737109837722,-500.0,0.00029808,2]
[349304266,1737109837731,-500.0,0.00029808,2]
[349304268,1737109837741,-500.0,0.00029808,2]
[349304270,1737109837751,-500.0,0.00029808,2]
[349304272,1737109837760,-500.0,0.00029808,2]
[349304274,1737109837770,-500.0,0.00029808,2]
[349304276,1737109837779,-500.0,0.00029808,2]
[349304278,1737109837788,-500.0,0.00029808,2]
[349304280,1737109837798,-209.52823491,0.00029809,2]
[349304282,1737109837807,-500.0,0.00029809,2]
[349304284,1737109837817,-501.39436482,0.00029809,2]
[349304287,1737109837827,-501.31127114,0.00029809,2]
[349304288,1737109837837,-503.95339738,0.00029809,2]
[349304290,1737109837847,-501.66983493,0.00029809,2]
[349304293,1737109837857,-504.1813834,0.00029809,2]
[349304295,1737109837867,-500.65315437,0.00029809,2]
[349304296,1737109837879,-504.30167973,0.00029809,2]
[349304298,1737109837887,-500.0,0.00029809,2]
[349304300,1737109837897,-388.00192113,0.00029809,2]
[349304302,1737109837907,-500.0,0.00029809,2]
[349304304,1737109837916,-500.0,0.00029809,2]
[349304306,1737109837926,-500.0,0.00029809,2]
[349304308,1737109837935,-500.0,0.00029809,2]
[349304310,1737109837944,-500.0,0.00029809,2]
[349304312,1737109837956,-500.0,0.00029809,2]
[349304314,1737109837967,-500.0,0.00029809,2]
[349304316,1737109837977,-1000.0,0.00029809,2]
[349304318,1737109837986,-500.0,0.0002981,7]
[349304320,1737109837995,-50000.0,0.0003,20]
[349304322,1737109838005,-8018.85908454,0.0003,8]
[349304324,1737109838015,-7435.0,0.00030012,2]
[349304326,1737109838024,-152.62,0.00030288,120]
[349304328,1737109838033,-451.6,0.00030709,2]
[349304330,1737109838042,-700.0,0.00030906,7]
[349304332,1737109838051,-2100.0,0.00030906,7]
[349304334,1737109838060,-50000.0,0.00031,21]
[349304336,1737109838069,-33714.336794,0.00031,2]
[349304338,1737109838078,-1458.62,0.000312,2]
[349304340,1737109838087,-500.0,0.00031243,2]
[349304342,1737109838097,-335.58,0.00031243,2]
[349304344,1737109838106,-443.58,0.00031243,2]
[349304346,1737109838115,-524.84,0.00031243,2]
[349304348,1737109838125,-439.41,0.00031243,2]
[349304350,1737109838134,-500.0,0.00031243,2]
[349304352,1737109838143,-500.0,0.00031243,2]
[349304354,1737109838154,-325.86,0.00031243,2]
[349304356,1737109838164,-500.0,0.00031243,2]
[349304358,1737109838173,-500.0,0.00031243,2]
[349304360,1737109838182,-541.84,0.00031244,2]
[349304362,1737109838191,-500.0,0.00031244,2]
[349304364,1737109838200,-500.0,0.00031244,2]
[349304366,1737109838213,-500.0,0.00031244,2]
[349304368,1737109838223,-500.0,0.00031244,2]
[349304370,1737109838232,-500.0,0.00031244,2]
[349304372,1737109838242,-500.0,0.00031454,7]
[349304374,1737109838252,-500.0,0.0003156,2]
[349304376,1737109838261,-500.0,0.00031726,2]
[349304378,1737109838271,-311.04630353,0.00031726,2]
[349304380,1737109838280,-412.82348186,0.00031726,2]
[349304382,1737109838290,-500.0,0.00031726,2]
[349304384,1737109838300,-500.0,0.00031727,2]
[349304386,1737109838309,-500.0,0.00031727,2]
[349304389,1737109838319,-500.0,0.00031727,2]
[349304391,1737109838328,-500.0,0.00031727,2]
[349304393,1737109838338,-500.0,0.00031727,2]
[349304395,1737109838347,-500.0,0.00031727,2]
[349304397,1737109838357,-500.0,0.00031727,2]
[349304399,1737109838366,-700.0,0.00031728,7]
[349304401,1737109838376,-2100.0,0.00031728,7]
[349304402,1737109838387,-500.0,0.00031769,2]
[349304405,1737109838401,-500.0,0.00031769,2]
[349304407,1737109838417,-500.0,0.00031769,2]
[349304409,1737109838430,-500.0,0.00031769,2]
[349304411,1737109838441,-500.0,0.00031769,2]
[349304413,1737109838453,-500.0,0.00031769,2]
[349304415,1737109838467,-500.0,0.00031769,2]
[349304417,1737109838477,-500.0,0.00031769,2]
[349304419,1737109838487,-500.0,0.00031769,2]
[349304421,1737109838497,-500.0,0.00031769,2]
[349304423,1737109838507,-543.23416459,0.00031769,2]
[349304425,1737109838516,-500.0,0.00031769,2]
[349304445,1737109838686,-500.0,0.00031769,2]
[349304447,1737109838697,-500.0,0.00031769,2]
[349304449,1737109838710,-5000.0,0.0003177,2]
[349304451,1737109838719,-600.86326412,0.00031777,4]
[349304453,1737109838728,-503.57668046,0.00031778,2]
[349304455,1737109838738,-500.0,0.00031778,2]
[349304457,1737109838747,-500.0,0.00031778,2]
[349304459,1737109838756,-500.0,0.00031778,2]
[349304461,1737109838766,-500.0,0.00031778,2]
[349304463,1737109838776,-1365.5301,0.00031779,2]
[349304465,1737109838785,-201.95985302,0.0003178,2]
[349304467,1737109838795,-930.40450584,0.0003178,2]
[349304469,1737109838804,-3566.88,0.000318,30]
[349304471,1737109838814,-150.26,0.00031868,2]
[349304473,1737109838823,-150.26,0.00031868,2]
[349304475,1737109838833,-150.26,0.00031868,2]
[349304477,1737109838842,-150.26,0.00031868,2]
[349304479,1737109838851,-150.26,0.00031868,2]
[349304481,1737109838860,-150.26,0.00031868,2]
[349304483,1737109838870,-150.26,0.00031868,2]
[349304485,1737109838882,-150.26,0.00031868,2]
[349304487,1737109838892,-150.26,0.00031868,2]
[349304489,1737109838901,-150.26,0.00031868,2]
[349304491,1737109838912,-150.26,0.00031868,2]
[349304493,1737109838922,-150.26,0.00031868,2]
[349304495,1737109838932,-150.26,0.00031869,2]
[349304497,1737109838941,-150.26,0.00031869,2]
[349304499,1737109838952,-150.26,0.00031869,2]
[349304501,1737109838967,-150.26,0.00031869,2]
[349304503,1737109838977,-150.26,0.00031869,2]
[349304505,1737109838987,-150.26,0.00031869,2]
[349304507,1737109838996,-150.26,0.00031869,2]
[349304509,1737109839007,-150.26,0.00031869,2]
[349304511,1737109839016,-150.26,0.00031869,2]
[349304513,1737109839025,-150.26,0.00031869,2]
[349304515,1737109839035,-150.26,0.00031869,2]
[349304517,1737109839044,-150.26,0.00031869,2]
[349304520,1737109839055,-150.26,0.00031869,2]
[349304521,1737109839073,-150.26,0.00031869,2]
[349304523,1737109839083,-150.26,0.00031869,2]
[349304525,1737109839093,-150.26,0.00031869,2]
[349304527,1737109839102,-150.26,0.00031869,2]
[349304530,1737109839112,-150.26,0.00031869,2]
[349304531,1737109839122,-150.26,0.0003187,2]
[349304533,1737109839131,-150.26,0.0003187,2]
[349304534,1737109839140,-150.26,0.0003187,2]
[349304535,1737109839149,-150.26,0.0003187,2]
[349304536,1737109839158,-150.26,0.0003187,2]
[349304537,1737109839168,-150.26,0.0003187,2]
[349304538,1737109839178,-150.26,0.0003187,2]
[349304539,1737109839187,-150.26,0.0003187,2]
[349304540,1737109839197,-150.26,0.0003187,2]
[349304541,1737109839209,-150.26,0.0003187,2]
[349304542,1737109839218,-150.26,0.0003187,2]
[349304543,1737109839228,-150.26,0.0003187,2]
[349304545,1737109839238,-150.26,0.0003187,2]
[349304547,1737109839247,-150.26,0.0003187,2]
[349304549,1737109839257,-150.26,0.0003187,2]
[349304551,1737109839268,-150.26,0.0003187,2]
[349304553,1737109839278,-150.26,0.0003187,2]
[349304555,1737109839289,-150.26,0.0003187,2]
[349304557,1737109839299,-150.26,0.0003187,2]
[349304559,1737109839308,-150.26,0.0003187,2]
[349304561,1737109839318,-150.26,0.0003187,2]
[349304563,1737109839328,-150.26,0.0003187,2]
[349304565,1737109839337,-150.26,0.0003187,2]
[349304567,1737109839347,-150.26,0.0003187,2]
[349304569,1737109839357,-150.26,0.0003187,2]
[349304571,1737109839367,-150.26,0.0003187,2]
[349304573,1737109839376,-500.0,0.00031876,2]
[349304575,1737109839385,-500.0,0.00031876,2]
[349304577,1737109839394,-500.0,0.00031876,2]
[349304579,1737109839404,-500.0,0.00031876,2]
[349304581,1737109839413,-500.0,0.00031876,2]
[349304583,1737109839422,-500.0,0.00031877,2]
[349304585,1737109839432,-500.0,0.00031877,2]
[349304587,1737109839441,-500.0,0.00031877,2]
[349304589,1737109839450,-500.0,0.00031877,2]
[349304591,1737109839462,-302.76207191,0.00031877,2]
[349304593,1737109839473,-500.0,0.00031877,2]
[349304595,1737109839483,-500.0,0.00031877,2]
[349304597,1737109839492,-504.52140238,0.00031877,2]
[349304599,1737109839501,-500.0,0.00031877,2]
[349304601,1737109839511,-502.73397628,0.00031877,2]
[349304603,1737109839521,-500.0,0.00031877,2]
[349304605,1737109839530,-199.8870384,0.00031877,2]
[349304607,1737109839540,-202901.91537845,0.00031877,3]
[349304609,1737109839550,-500.0,0.00031877,2]
[349304612,1737109839559,-500.0,0.00031877,2]
[349304615,1737109839568,-500.0,0.00031877,2]
[349304618,1737109839577,-500.0,0.00031877,2]
[349304620,1737109839592,-500.0,0.00031877,2]
[349304622,1737109839602,-500.0,0.00031877,2]
[349304624,1737109839611,-500.0,0.00031877,2]
[349304626,1737109839621,-500.0,0.00031877,2]
[349304628,1737109839631,-500.0,0.00031877,2]
[349304630,1737109839641,-500.0,0.00031877,2]
[349304632,1737109839651,-500.0,0.00031877,2]
[349304634,1737109839660,-500.0,0.00031877,2]
[349304636,1737109839670,-500.0,0.00031877,2]
[349304638,1737109839679,-500.0,0.00031877,2]
[349304640,1737109839689,-500.0,0.00031877,2]
[349304642,1737109839698,-529.63784236,0.00031877,2]
[349304644,1737109839712,-500.0,0.00031877,2]
[349304646,1737109839722,-500.0,0.00031877,2]
[349304648,1737109839731,-500.0,0.00031877,2]
[349304650,1737109839740,-500.0,0.00031877,2]
[349304652,1737109839750,-500.0,0.00031877,2]
[349304654,1737109839759,-340.02685928,0.00031877,2]
[349304656,1737109839768,-500.75263181,0.00031877,2]
[349304658,1737109839777,-501.1428442,0.00031877,2]
[349304660,1737109839787,-500.51870177,0.00031877,2]
[349304662,1737109839796,-226.86368646,0.00031877,2]
[349304664,1737109839806,-414.81200962,0.00031878,3]
[349304666,1737109839816,-305.0596436,0.00031878,2]
[349304668,1737109839825,-586.71,0.00031878,2]
[349304670,1737109839834,-559.61,0.00031878,2]
[349304672,1737109839843,-500.0,0.00031878,2]
[349304674,1737109839853,-293.53439892,0.00031878,2]
[349304676,1737109839862,-500.0,0.00031878,2]
[349304678,1737109839871,-500.0,0.00031878,2]
[349304680,1737109839882,-500.0,0.00031878,2]
[349304682,1737109839891,-500.0,0.00031878,2]
[349304683,1737109839900,-500.0,0.00031878,2]
[349304685,1737109839909,-500.0,0.00031878,2]
[349304687,1737109839918,-500.0,0.00031878,2]
[349304689,1737109839928,-500.0,0.00031878,2]
[349304691,1737109839938,-500.0,0.00031878,2]
[349304693,1737109839947,-500.0,0.00031878,2]
[349304695,1737109839961,-500.0,0.00031878,2]
[349304697,1737109839970,-500.0,0.00031878,2]
[349304699,1737109839979,-500.0,0.00031878,2]
[349304701,1737109839988,-347.28101028,0.00031878,2]
[349304703,1737109839997,-500.0,0.00031878,2]
[349304705,1737109840006,-500.0,0.00031878,2]
[349304707,1737109840016,-533.93142622,0.00031878,2]
[349304709,1737109840025,-518.59580669,0.00031878,2]
[349304711,1737109840035,-500.0,0.00031878,2]
[349304713,1737109840044,-514.36221316,0.00031878,2]
[349304715,1737109840054,-500.0,0.00031878,2]
[349304717,1737109840063,-570.53164706,0.00031878,2]
[349304719,1737109840073,-500.0,0.00031878,2]
[349304721,1737109840082,-500.0,0.00031878,2]
[349304723,1737109840092,-565.33786348,0.00031878,2]
[349304725,1737109840101,-500.0,0.00031878,2]
[349304727,1737109840110,-500.0,0.00031878,2]
[349304729,1737109840120,-500.0,0.00031878,2]
[349304731,1737109840129,-500.0,0.00031878,2]
[349304733,1737109840138,-500.0,0.00031878,2]
[349304735,1737109840147,-500.0,0.00031878,2]
[349304737,1737109840156,-500.0,0.00031878,2]
[349304739,1737109840166,-500.0,0.00031878,2]
[349304741,1737109840175,-500.0,0.00031878,2]
[349304743,1737109840184,-553.86,0.00031878,2]
[349304745,1737109840193,-419.27888391,0.00031878,2]
[349304747,1737109840202,-500.0,0.00031878,2]
[349304749,1737109840214,-500.0,0.00031878,2]
[349304751,1737109840223,-500.0,0.00031878,2]
[349304753,1737109840232,-500.0,0.00031878,2]
[349304755,1737109840241,-500.0,0.00031878,2]
[349304757,1737109840252,-500.0,0.00031878,2]
[349304759,1737109840262,-500.0,0.00031878,2]
[349304761,1737109840271,-500.0,0.00031878,2]
[349304763,1737109840280,-594.44444705,0.00031878,2]
[349304765,1737109840289,-184.71,0.00031878,2]
[349304767,1737109840299,-500.0,0.00031878,2]
[349304769,1737109840308,-500.0,0.00031878,2]
[349304771,1737109840318,-312.8,0.00031878,2]
[349304773,1737109840327,-500.0,0.00031878,2]
[349304775,1737109840336,-293.92,0.00031878,2]
[349304777,1737109840345,-500.0,0.00031878,7]
[349304779,1737109840354,-510.21153096,0.00031878,2]
[349304781,1737109840364,-1178.27,0.00031878,2]
[349304783,1737109840372,-1178.27,0.00031878,2]
[349304785,1737109840381,-1178.27,0.00031878,2]
[349304787,1737109840390,-1178.27,0.00031878,2]
[349304789,1737109840399,-1178.27,0.00031878,2]
[349304790,1737109840408,-1178.27,0.00031878,2]
[349304792,1737109840417,-1178.27,0.00031878,2]
[349304795,1737109840427,-1178.27,0.00031878,2]
[349304796,1737109840436,-1178.27,0.00031878,2]
[349304798,1737109840445,-1178.27,0.00031878,2]
[349304801,1737109840454,-1178.27,0.00031878,2]
[349304803,1737109840467,-205.88,0.00031878,2]
[349304804,1737109840477,-500.0,0.00031878,2]
[349304807,1737109840487,-411.10880029,0.00031878,2]
[349304808,1737109840496,-500.0,0.00031878,2]
[349304811,1737109840506,-500.0,0.00031878,2]
[349304812,1737109840515,-500.0,0.00031878,2]
[349304815,1737109840525,-468.24,0.00031878,2]
[349304817,1737109840534,-999.0,0.00031878,7]
[349304819,1737109840543,-500.0,0.00031878,2]
[349304821,1737109840552,-500.0,0.00031878,2]
[349304822,1737109840562,-163.74284147,0.00031878,2]
[349304824,1737109840571,-502.27977132,0.00031878,2]
[349304826,1737109840580,-500.0,0.00031878,2]
[349304828,1737109840590,-500.0,0.00031878,2]
[349304830,1737109840600,-500.0,0.00031878,2]
[349304832,1737109840610,-500.0,0.00031878,2]
[349304834,1737109840619,-500.0,0.00031878,2]
[349304836,1737109840628,-500.0,0.00031878,2]
[349304838,1737109840637,-500.0,0.00031878,2]
[349304840,1737109840647,-500.0,0.00031878,2]
[349304842,1737109840656,-500.0,0.00031878,2]
[349304844,1737109840666,-500.0,0.00031878,2]
[349304846,1737109840675,-500.0,0.00031878,2]
[349304848,1737109840684,-464.04,0.00031878,2]
[349304850,1737109840694,-511.31033627,0.00031878,2]
[349304852,1737109840703,-500.0,0.00031878,2]
[349304854,1737109840715,-500.0,0.00031878,2]
[349304856,1737109840724,-500.0,0.00031878,2]
[349304858,1737109840733,-500.0,0.00031878,2]
[349304860,1737109840743,-508.55012913,0.00031878,2]
[349304862,1737109840752,-500.0,0.00031878,2]
[349304864,1737109840762,-306.22,0.00031878,2]
[349304866,1737109840771,-500.0,0.00031878,2]
[349304868,1737109840780,-500.0,0.00031878,2]
[349304870,1737109840789,-500.0,0.00031878,2]
[349304872,1737109840799,-500.0,0.00031878,2]
[349304874,1737109840808,-500.0,0.00031878,2]
[349304876,1737109840818,-500.0,0.00031878,2]
[349304878,1737109840827,-500.0,0.00031878,2]
[349304880,1737109840836,-500.0,0.00031878,2]
[349304882,1737109840846,-500.0,0.00031878,2]
[349304884,1737109840855,-500.0,0.00031878,2]
[349304886,1737109840865,-348.71,0.00031878,2]
[349304888,1737109840876,-519.52530963,0.00031878,2]
[349304890,1737109840890,-500.0,0.00031878,2]
[349304892,1737109840900,-500.0,0.00031878,2]
[349304895,1737109840911,-500.0,0.00031878,2]
[349304897,1737109840921,-500.0,0.00031878,2]
[349304898,1737109840931,-500.0,0.00031878,2]
[349304901,1737109840940,-633.91,0.00031878,2]
[349304903,1737109840950,-500.0,0.00031878,2]
[349304904,1737109840961,-500.0,0.00031878,2]
[349304907,1737109840971,-546.21,0.00031878,2]
[349304908,1737109840980,-500.0,0.00031878,2]
[349304910,1737109840989,-9670.7062409,0.00031878,2]
[349304912,1737109840998,-500.0,0.00031878,2]
[349304914,1737109841008,-509.25498199,0.00031878,2]
[349304916,1737109841017,-500.0,0.00031878,2]
[349304918,1737109841027,-500.0,0.00031878,2]
[349304920,1737109841036,-500.0,0.00031878,2]
[349304922,1737109841046,-500.0,0.00031878,2]
[349304924,1737109841056,-500.0,0.00031878,2]
[349304926,1737109841066,-500.0,0.00031878,2]
[349304928,1737109841075,-527.72159309,0.00031878,2]
[349304930,1737109841085,-3291.7980337,0.00031878,2]
[349304932,1737109841094,-500.0,0.00031878,2]
[349304934,1737109841103,-523.3,0.00031878,2]
[349304936,1737109841113,-500.0,0.00031878,2]
[349304938,1737109841122,-612.35,0.00031878,2]
[349304940,1737109841131,-439.19046571,0.00031878,2]
[349304942,1737109841141,-500.0,0.00031878,2]
[349304944,1737109841152,-500.0,0.00031878,2]
[349304946,1737109841161,-500.0,0.00031878,2]
[349304948,1737109841169,-435.49,0.00031878,2]
[349304950,1737109841179,-500.0,0.00031878,2]
[349304952,1737109841188,-500.0,0.00031878,2]
[349304954,1737109841197,-500.0,0.00031878,2]
[349304955,1737109841206,-500.0,0.00031878,2]
[349304956,1737109841218,-500.0,0.00031878,2]
[349304958,1737109841227,-500.0,0.00031878,2]
[349304960,1737109841237,-430.14149868,0.00031878,2]
[349304962,1737109841246,-293.80089592,0.00031878,2]
[349304964,1737109841255,-663812.04809301,0.00031878,9]
[349304967,1737109841275,-1644.5696,0.00031878,9]
[349304969,1737109841286,-3419.1,0.00031878,9]
[349304971,1737109841297,-496.04001,0.00031878,9]
[349304979,1737109841368,-500.0,0.00031769,2]
[349304981,1737109841377,-500.0,0.00031878,2]
[349304983,1737109841387,-500.0,0.00031878,2]
[349304985,1737109841396,-500.0,0.00031878,2]
[349304987,1737109841405,-3056.53355824,0.00031878,9]
[349304989,1737109841416,-309.92359881,0.00031878,9]
[349304997,1737109841487,-163.86937946,0.0003178,2]
[349304999,1737109841496,-1551.07362054,0.00031878,9]
[349305005,1737109841544,-7155.2282561,0.00031878,9]
[349305142,1737109842758,-500.0,0.00031769,2]
[349305144,1737109842768,-500.0,0.00031778,2]
[349305146,1737109842778,-427.71,0.00031878,2]
[349305148,1737109842788,-24064.79,0.00031878,9]
[349305236,1737109845552,-500.0,0.00031778,2]
[349305238,1737109845564,-2537.5,0.00031878,9]
[349305240,1737109845577,-716472.71637389,0.00031878,9]
[349305241,1737109845588,-117207.03748809,0.00031879,10]
[349305242,1737109845599,-263.21584521,0.00031879,10]
[349305243,1737109845740,-259.55915509,0.00031879,10]
[349305244,1737109845751,-6882.73685463,0.00031879,10]
[349305245,1737109845763,-79577.24436595,0.00031879,10]
[349305246,1737109845774,-6380.90799268,0.00031879,10]
[349305251,1737109846011,-78860.43805822,0.00031879,10]
[349305252,1737109846023,-1000.0,0.00031879,10]
[349305253,1737109846035,-22296.04700897,0.00031879,10]
[349305255,1737109846047,-31070.18707118,0.00031879,10]
[349305256,1737109846059,-362.00045351,0.00031879,10]
[349305260,1737110153884,155.34,0.00010137,2]
[349305265,1737110833128,-155.34,0.00019895,2]
[349305266,1737110833148,-339.76663637,0.000269,2]
[349305267,1737110845137,-204.45851647,0.000269,2]
[349305268,1737110845157,-544.22515284,0.00026921,2]
[349305269,1737110845178,-544.22515284,0.00026941,2]
[349305270,1737110845198,-471.34889041,0.00027,2]
[349305273,1737110953103,-78.65110959,0.00027,2]
[349305274,1737110953308,-150.0,0.00027041,2]
[349305275,1737110953328,-150.0,0.00027062,2]
[349305276,1737110953350,-399.28519077,0.00027063,2]
[349305283,1737110995250,155.54,0.00010137,2]
[349305299,1737111031796,-300.0,0.00027062,2]
[349305300,1737111031807,-1130.11950921,0.00027063,2]
[349305301,1737111031819,-137.88049079,0.00027063,2]
[349305302,1737111031830,-1122.773,0.00027063,2]
[349305303,1737111031841,-567.0,0.00027063,2]
[349305304,1737111031852,-150.0,0.00027063,2]
[349305305,1737111031862,-150.78670818,0.00027063,2]
[349305306,1737111031875,-484.21329182,0.00027063,2]
[349305307,1737111031887,-150.0,0.00027063,2]
[349305308,1737111031898,-1345.91085189,0.00027063,2]
[349305309,1737111031915,-2553.08914811,0.00027063,2]
[349305310,1737111031925,-1174.0,0.00027063,2]
[349305311,1737111031937,-71.35972655,0.00027201,2]
[349305312,1737111031951,-707.03527995,0.00027201,2]
[349305313,1737111031963,-202.83212829,0.00027214,2]
[349305314,1737111031980,-575.56287821,0.00027214,2]
[349305315,1737111031991,-200.0,0.00027218,2]
[349305316,1737111032002,-619.5326568,0.00027256,2]
[349305317,1737111032015,-158.8623497,0.00027256,2]
[349305318,1737111032026,-381.1376503,0.00027264,2]
[349305319,1737111032039,-397.2573562,0.00027264,2]
[349305320,1737111032050,-138.2126438,0.00027296,2]
[349305321,1737111032079,-640.1823627,0.00027296,2]
[349305322,1737111032090,-778.3950065,0.0002733,2]
[349305323,1737111032102,-778.3950065,0.00027335,2]
[349305324,1737111032114,-778.3950065,0.00027351,2]
[349305325,1737111032126,-200.0,0.00027367,2]
[349305326,1737111032137,-489.0,0.0002737,2]
[349305327,1737111032148,-362.49,0.00028362,2]
[349305328,1737111032158,-34334.0,0.00028829,2]
[349305329,1737111032169,-1346.177,0.00028894,21]
[349305330,1737111032181,-600.0,0.00029,2]
[349305331,1737111032192,-1668.37996026,0.0002912,2]
[349305332,1737111032202,-155.34,0.00029652,2]
[349305333,1737111032213,-238.94547814,0.00030063,2]
[349305334,1737111032226,-328.05452186,0.00030063,2]
[349305335,1737111032238,-150.0,0.00030063,2]
[349305336,1737111032249,-635.0,0.00030063,2]
[349305337,1737111032259,-150.0,0.00030063,2]
[349305338,1737111032271,-1636.94547814,0.00030063,2]
[349305339,1737111032285,-2262.05452186,0.00030063,2]
[349305340,1737111032300,-714.36,0.00030137,2]
[349305341,1737111032311,-1000.0,0.0003028,2]
[349305342,1737111032322,-250.0,0.00030315,2]
[349305343,1737111032332,-324.57,0.00030425,2]
[349305344,1737111032342,-152.62,0.00030531,120]
[349305345,1737111032353,-362.49,0.00030626,2]
[349305346,1737111032363,-250.0,0.00030727,2]
[349305347,1737111032374,-663.5959,0.000309,2]
[349305348,1737111032383,-1800.0,0.00030906,7]
[349305349,1737111032394,-600.0,0.00030906,7]
[349305350,1737111032404,-650.0,0.00031,2]
[349305351,1737111032415,-5000.0,0.00031,120]
[349305352,1737111032631,-250.0,0.00031,2]
[349305353,1737111032651,-188.63,0.00031099,120]
[349305354,1737111032662,-1312.76,0.000311,2]
[349305355,1737111032672,-150.0,0.0003124,4]
[349305356,1737111032682,-150.0,0.00031607,2]
[349305357,1737111032692,-150.0,0.00031607,2]
[349305358,1737111032701,-150.0,0.00031637,2]
[349305359,1737111032711,-261.20322508,0.00031655,2]
[349305360,1737111032720,-150.0,0.00031667,2]
[349305361,1737111032730,-150.0,0.00031668,2]
[349305362,1737111032740,-1798.6788,0.00031678,2]
[349305363,1737111032751,-150.0,0.00031703,2]
[349305364,1737111032762,-150.0,0.00031714,2]
[349305365,1737111032771,-591.68,0.00031726,2]
[349305366,1737111032781,-500.0,0.00031726,2]
[349305367,1737111032791,-500.0,0.00031726,2]